[Event "2nd Cambridge Open 2024"]
[Site "Cambridge"]
[Date "2024.02.19"]
[Round "2.1"]
[White "Tiviakov, Sergei"]
[Black "Pert, Richard G"]
[Result "1-0"]
[ECO "B15"]
[WhiteElo "2537"]
[BlackElo "2411"]
[Annotator "TA"]
[PlyCount "123"]
[EventDate "2024.02.18"]
[EventType "swiss"]
[EventCountry "ENG"]
[SourceTitle "playchess.com"]
[Source "ChessBase"]
[SourceQuality "1"]
[TimeControl "5400+30"]

{[%evp 31,123,0,0,0,0,0,0,0,14,0,0,0,14,0,36,0,16,0,0,0,0,0,69,54,42,19,9,8,5,0,0,0,0,0,25,0,0,0,124,120,120,130,133,111,118,88,103,106,114,66,78,44,103,16,27,16,31,0,71,72,80,41,61,8,76,63,80,8,191,188,235,217,304,299,334,334,327,196,29967,29968,29968,29970,29970,29970,29970,29971,29974,29975,29975,29976,29976,29977,29977,29978]} 1. e4 {[%emt 0:00:03]} c6 {[%emt 0:00:20]} 2. d4 {[%emt 0:01:59]} d5 {[%emt 0:00:10]} 3. Nd2 {[%emt 0:00:04]} dxe4 {[%emt 0:00:18]} 4. Nxe4 {[%emt 0:00:05]} Nf6 {[%emt 0:00:10]} 5. Nxf6+ {[%emt 0:00:11]} exf6 {[%emt 0:00:09]} 6. Bc4 {[%emt 0:00:32]} Bd6 {[%emt 0:01:47]} 7. Qe2+ {[%emt 0:00:04]} Be7 {[%emt 0:00:49]} 8. Nf3 {[%emt 0:01:08] B15: Caro-Kann: 3 Nc3: 3...g6 and 3...dxe4 4 Nxe4 Nf6 5 Nxf6+ exf6.} O-O {[%emt 0:00:29]} 9. h3 {[%emt 0:09:15]} Bd6 {[%emt 0:04:30]} 10. O-O {[%emt 0:00:32]} Na6 {[%emt 0:01:17]} 11. Re1 {[%emt 0:03:50]} Nc7 {[%emt 0:03:11]} 12. Bd2 {[%emt 0:00:45]} Bf5 $146 {[%emt 0:02:11]} ({Predecessor:} 12... a5 13. a4 Nd5 14. c3 Be6 15. Bd3 Re8 16. Qe4 g6 17. Qh4 Qd7 18. Bc4 Be7 {½-½ Adams,M (2703)-Howell,D (2696) GBR-ch KO London 2018 (4.8)}) 13. Bd3 {[%emt 0:01:24]} Qd7 {[%emt 0:09:32]} 14. c4 {[%emt 0:05:06]} Rfe8 {[%emt 0:16:37]} 15. Qf1 {[%emt 0:01:12]} Rad8 {[%emt 0:05:05]} 16. b4 {[%emt 0:12:13]} Bg6 {[%emt 0:03:02]} 17. Rxe8+ {[%emt 0:04:24]} Qxe8 {[%emt 0:06:51]} 18. Bxg6 {[%emt 0:18:36]} hxg6 {[%emt 0:00:37]} 19. a4 {[%emt 0:00:32]} g5 {[%emt 0:05:37]} 20. b5 {[%emt 0:04:51]} Ne6 {[%emt 0:10:02]} 21. Rb1 {[%emt 0:07:18]} Qd7 {[%emt 0:02:33]} 22. Be3 {[%emt 0:03:28]} Bb8 {[%emt 0:01:34]} 23. Rd1 {[%emt 0:00:52]} Nc7 {[%emt 0:02:04]} 24. Qd3 {[%emt 0:06:52]} g4 {[%emt 0:01:25]} 25. hxg4 {[%emt 0:00:04]} Qxg4 {[%emt 0:00:16]} 26. Qb3 {[%emt 0:00:16]} Qe4 {[%emt 0:02:46]} (26... Ne6 $11) 27. bxc6 {[%emt 0:02:42]} bxc6 {[%emt 0:00:06]} 28. Qb7 {[%emt 0:03:20]} Qc2 {[%emt 0:06:49]} 29. Rc1 {[%emt 0:03:18]} Qxa4 {[%emt 0:00:14]} 30. d5 {[%emt 0:03:31]} cxd5 {[%emt 0:02:15]} 31. Nd4 $1 {[%emt 0:00:45]} dxc4 {[%emt 0:07:58]} 32. Nc6 $1 {[%emt 0:00:05]} Rd1+ {[%emt 0:00:13]} 33. Kh2 {[%emt 0:00:22]} Rxc1 {[%emt 0:01:15]} 34. Bxc1 {[%emt 0:03:03]} Qb5 {[%emt 0:02:50]} (34... Ne8+ $11 {keeps the balance.} 35. Nxb8 Qd1) 35. Qxb8+ $16 {[%emt 0:01:18]} Qxb8 {[%emt 0:00:35]} 36. Nxb8 {[%emt 0:00:02]} a5 {[%emt 0:00:15]} 37. Nc6 {[%emt 0:01:08]} a4 {[%emt 0:00:07]} 38. Nb4 {[%emt 0:00:50]} Nb5 {[%emt 0:00:39]} 39. Nc2 {[%emt 0:00:19]} Kf8 {[%emt 0:01:37]} 40. Kg3 {[%emt 0:01:37]} ({Better is} 40. Na3 $16 Nd6 41. Kg3) 40... Ke7 $1 $14 {[%emt 0:00:06]} 41. Kf3 {[%emt 0:00:41]} Ke6 {[%emt 0:00:50]} (41... Kd6 $1 $14) 42. Ke4 {[%emt 0:00:49]} (42. Na3 $16 Nd6 43. Ke2) 42... f5+ $11 {[%emt 0:00:10]} 43. Ke3 {[%emt 0:00:24]} Kd5 {[%emt 0:00:27]} 44. Na3 {[%emt 0:00:43]} Nd4 {[%emt 0:00:35]} (44... Nc3 $11) 45. Bb2 $16 {[%emt 0:00:35]} f4+ {[%emt 0:00:28]} 46. Kd2 $1 {[%emt 0:00:06]} (46. Kxf4 $2 {perishes.} c3 47. Ba1 (47. Bxc3 Ne2+ 48. Ke3 Nxc3 $17) 47... c2 $19) 46... Nb3+ {[%emt 0:01:33]} 47. Ke2 {[%emt 0:01:47]} (47. Kd1 $14 g5 48. Nb1) 47... g5 {[%emt 0:00:18]} (47... Nd4+ $11 {remains equal.} 48. Kd2 g5) 48. Nb1 $16 {[%emt 0:00:16]} Nd4+ {[%emt 0:00:19] [#]} 49. Kd1 {[%emt 0:00:09]} (49. Kd2 $1 $16) 49... f3 $2 {[%emt 0:01:16]} (49... Nb5 $11) 50. Nc3+ $18 {[%emt 0:00:19]} Ke6 {[%emt 0:00:13] [#]} (50... Kc5 $142 51. Ba3+ (51. Nxa4+ Kb4 $18) 51... Kb6) 51. g3 $1 $18 {[%emt 0:00:05]} (51. Nxa4 $2 {loses.} fxg2 52. Bxd4 g1=Q+ $19 (52... g1=R+ 53. Kc2 $15)) 51... f5 {[%emt 0:00:30]} (51... a3 {is a better defense.} 52. Bxa3 f6) 52. Nxa4 $18 {[%emt 0:00:12]} Ne2 {[%emt 0:00:47]} 53. Nc3 {[%emt 0:00:08]} Ng1 {[%emt 0:00:19]} 54. Nb5 {[%emt 0:01:24]} (54. Kd2 $142) 54... Ne2 $2 {[%emt 0:00:34]} (54... Nh3 $18) 55. Nd4+ {[%emt 0:00:27]} Nxd4 {[%emt 0:00:05]} 56. Bxd4 {[%emt 0:00:03]} Kd5 {[%emt 0:00:06]} 57. Bf6 {[%emt 0:01:35]} g4 {[%emt 0:00:20]} 58. Kd2 {[%emt 0:00:27]} f4 {[%emt 0:00:15]} 59. gxf4 {[%emt 0:00:23]} Ke4 {[%emt 0:01:39]} 60. Bh4 {[%emt 0:00:07]} Kxf4 {[%emt 0:00:06]} 61. Kc3 {[%emt 0:00:03]} Ke4 {[%emt 0:00:56]} 62. Kxc4 {[%emt 0:00:04]} 1-0

[Event "2nd Cambridge Open 2024"]
[Site "Cambridge"]
[Date "2024.02.19"]
[Round "2.2"]
[White "Derakhshani, Borna"]
[Black "Fernandez, Daniel Howard"]
[Result "0-1"]
[ECO "C16"]
[WhiteElo "2369"]
[BlackElo "2525"]
[Annotator "TA"]
[PlyCount "102"]
[EventDate "2024.02.18"]
[EventType "swiss"]
[EventCountry "ENG"]
[SourceTitle "playchess.com"]
[Source "ChessBase"]
[SourceQuality "1"]
[TimeControl "5400+30"]

{[%evp 14,102,62,55,58,41,42,17,54,37,145,40,55,40,33,41,61,10,32,27,22,18,23,-17,-15,-13,-19,0,0,-9,0,0,0,0,0,0,0,39,45,0,0,0,0,0,0,0,0,0,0,-8,-8,-16,-15,-13,-14,-14,-14,-15,0,0,0,0,0,0,0,0,0,-8,0,-8,-8,-779,-645,-780,-774,-874,-867,-857,-892,-1607,-1409,-1818,-1525,-3631,-1824,-29980,-29980,-29986,-29986,-29991,-29992]} 1. e4 {[%emt 0:00:01]} e6 {[%emt 0:09:35]} 2. d4 {[%emt 0:00:04]} d5 {[%emt 0:00:01]} 3. Nc3 {[%emt 0:00:05]} Bb4 {[%emt 0:03:47]} 4. e5 {[%emt 0:00:06]} b6 {[%emt 0:07:06]} 5. Qg4 {[%emt 0:03:10]} Bf8 {[%emt 0:03:14]} 6. Bg5 {[%emt 0:12:13]} Qd7 {[%emt 0:00:47]} 7. f4 {[%emt 0:01:14]} a5 {[%emt 0:05:47] C16: French: 3 Nc3 Bb4 4 e5: Lines without ...c5.} 8. Nf3 $146 {[%emt 0:04:12]} ({Predecessor:} 8. O-O-O Ba6 9. Bxa6 Nxa6 10. Nf3 h6 11. Bh4 Ne7 12. Bxe7 Qxe7 13. f5 O-O-O 14. Rhf1 Kb7 15. fxe6 fxe6 {1-0 Arduino,G-Gandia,A IECG TG.2002.0.14471}) 8... Ba6 {[%emt 0:00:45]} 9. Bxa6 {[%emt 0:01:25]} (9. O-O-O {with more complications.} h6 10. Qh5 Ne7 11. Bxe7 g6 12. Qh3) 9... Nxa6 {[%emt 0:01:06]} 10. O-O {[%emt 0:00:54]} c6 {[%emt 0:18:24]} 11. Rae1 {[%emt 0:10:04]} Nc7 {[%emt 0:00:02]} (11... h6 $14) 12. Qh3 {[%emt 0:06:30]} (12. Na4 $16 Rb8 13. Qh3) 12... Ne7 $1 $14 {[%emt 0:05:50]} 13. Na4 {[%emt 0:03:36]} (13. g4 $5) 13... Rb8 {[%emt 0:00:12]} 14. g4 {[%emt 0:12:52]} c5 {[%emt 0:03:25]} 15. b3 {[%emt 0:00:47]} ({White should play} 15. Nc3 $14) 15... cxd4 $11 {[%emt 0:02:36]} 16. Nxd4 {[%emt 0:02:42]} Nc6 {[%emt 0:00:02]} 17. Nf3 {[%emt 0:03:45]} Nb4 {[%emt 0:09:27]} 18. c3 {[%emt 0:09:43]} Nxa2 {[%emt 0:03:10]} 19. Re2 {[%emt 0:03:36]} (19. f5 b5 20. Nb2 (20. fxe6 $2 Nxe6 21. Nb2 Nxc3 $19) 20... Nxc3 $17) 19... b5 $1 {[%emt 0:01:31]} 20. Rxa2 {[%emt 0:00:04]} bxa4 {[%emt 0:00:06]} 21. bxa4 {[%emt 0:02:40]} Qc6 {[%emt 0:06:36]} 22. Nd4 {[%emt 0:04:12]} Qc4 {[%emt 0:02:30]} 23. Raf2 {[%emt 0:01:42]} Bc5 {[%emt 0:00:33]} 24. f5 {[%emt 0:01:48]} Bxd4 {[%emt 0:03:52]} 25. cxd4 {[%emt 0:00:01]} Qxd4 {[%emt 0:00:40]} 26. Be3 {[%emt 0:03:41]} (26. f6 g6 27. Qa3 Qb4 $17 (27... Qxe5 28. Qe7#) (27... Qxg4+ 28. Kh1 $17)) (26. Rc1 $5) 26... Qd3 $1 {[%emt 0:04:23]} 27. Rf3 {[%emt 0:06:58]} Rb1 {[%emt 0:00:34]} 28. Bb6 {[%emt 0:01:18]} (28. Rxb1 {simplifies} Qxb1+ 29. Rf1 Qb3 30. Qf3) 28... Rxf1+ $1 {[%emt 0:03:38]} 29. Qxf1 {[%emt 0:00:01]} Qxf1+ {[%emt 0:01:41]} 30. Kxf1 {[%emt 0:02:34]} Kd7 {[%emt 0:00:10]} 31. Bxc7 {[%emt 0:01:16]} Kxc7 {[%emt 0:00:02]} 32. fxe6 {[%emt 0:00:01]} fxe6 {[%emt 0:00:10]} 33. Rf7+ {[%emt 0:00:02]} Kc6 {[%emt 0:00:13]} 34. Rxg7 {[%emt 0:01:17]} d4 {[%emt 0:00:17]} 35. Ke2 {[%emt 0:00:48]} Kd5 {[%emt 0:01:46]} 36. Kd3 {[%emt 0:00:14]} Rb8 {[%emt 0:03:33]} 37. Rxh7 {[%emt 0:00:19]} Rb3+ {[%emt 0:00:09]} (37... Kxe5 38. Rh5+ Kf4 39. Kxd4) 38. Kc2 {[%emt 0:00:15]} Rc3+ {[%emt 0:00:08]} 39. Kd2 {[%emt 0:00:01]} Ra3 {[%emt 0:00:22]} 40. g5 {[%emt 0:00:49]} Kxe5 {[%emt 0:00:27]} 41. g6 {[%emt 0:02:12]} Kf6 {[%emt 0:00:13]} 42. Ra7 $2 {[%emt 0:00:37][%mdl 8192]} (42. g7 $11 Kf7 43. Rh6) 42... Kxg6 $19 {[%emt 0:00:23]} 43. Rxa5 {[%emt 0:00:08]} Kf6 {[%emt 0:00:06]} 44. h4 {[%emt 0:00:52]} e5 {[%emt 0:00:01]} 45. h5 {[%emt 0:00:10]} Kf5 {[%emt 0:00:07]} 46. h6 {[%emt 0:00:28]} Rh3 {[%emt 0:00:07]} 47. Ra6 {[%emt 0:00:27]} e4 {[%emt 0:00:24]} 48. Rd6 {[%emt 0:00:58]} Ke5 {[%emt 0:00:07]} 49. Rg6 {[%emt 0:01:03]} Rh2+ {[%emt 0:00:07]} 50. Ke1 {[%emt 0:01:04]} d3 {[%emt 0:00:57]} 51. a5 {[%emt 0:00:30]} e3 {[%emt 0:00:08]} 0-1

[Event "2nd Cambridge Open 2024"]
[Site "Cambridge"]
[Date "2024.02.19"]
[Round "2.3"]
[White "Wells, Peter K"]
[Black "Gasanov, Eldar"]
[Result "1-0"]
[ECO "D45"]
[WhiteElo "2341"]
[BlackElo "2487"]
[Annotator "RC"]
[PlyCount "41"]
[EventDate "2024.02.18"]
[EventType "swiss"]
[EventCountry "ENG"]
[SourceTitle "playchess.com"]
[Source "ChessBase"]
[SourceQuality "1"]
[TimeControl "5400+30"]

1. d4 {[%emt 0:03:01]} Nf6 {[%emt 0:00:30]} 2. Nf3 {[%emt 0:00:19]} d5 {[%emt 0:01:36]} 3. c4 {[%emt 0:00:49]} e6 {[%emt 0:00:30]} 4. Nc3 {[%emt 0:01:06]} c6 {[%emt 0:00:33]} 5. e3 {[%emt 0:01:55]} a6 {[%emt 0:01:27]} 6. Qc2 {[%emt 0:04:17]} c5 {[%emt 0:00:28]} 7. dxc5 {[%emt 0:06:47]} Bxc5 {[%emt 0:00:48]} 8. a3 {[%emt 0:00:12]} O-O {[%emt 0:05:10]} 9. b4 {[%emt 0:02:30]} Ba7 {[%emt 0:00:44]} 10. Bb2 {[%emt 0:00:27]} Qe7 {[%emt 0:01:30]} 11. Rd1 {[%emt 0:09:43]} Rd8 {[%emt 0:01:29]} 12. Be2 {[%emt 0:11:08]} dxc4 {[%emt 0:03:14]} 13. Rxd8+ {[%emt 0:05:27]} Qxd8 {[%emt 0:00:11]} 14. Ne4 {[%emt 0:09:04]} Nbd7 {[%emt 0:04:06]} 15. O-O {[%emt 0:11:28]} b5 {[%emt 0:37:25]} 16. Nxf6+ {[%emt 0:03:23]} Nxf6 {[%emt 0:06:03]} 17. Ng5 {[%emt 0:07:55]} h6 {[%emt 0:21:44]} 18. Rd1 {[%emt 0:01:01]} Qe8 {[%emt 0:00:26]} 19. Bxf6 {[%emt 0:01:02]} gxf6 {[%emt 0:01:26]} 20. Qh7+ {[%emt 0:00:58]} Kf8 {[%emt 0:00:52]} 21. Rd8 {[%emt 0:00:06]} 1-0

[Event "2nd Cambridge Open 2024"]
[Site "Cambridge"]
[Date "2024.02.19"]
[Round "2.4"]
[White "Royal, Shreyas"]
[Black "York-Weaving, Richard"]
[Result "1-0"]
[ECO "D24"]
[WhiteElo "2459"]
[BlackElo "2343"]
[Annotator "TA"]
[PlyCount "51"]
[EventDate "2024.02.18"]
[EventType "swiss"]
[EventCountry "ENG"]
[SourceTitle "playchess.com"]
[Source "ChessBase"]
[SourceQuality "1"]
[TimeControl "5400+30"]

{[%evp 9,51,18,20,0,0,0,0,0,0,0,0,0,0,0,45,52,38,46,50,57,175,187,198,149,313,324,371,365,459,449,620,645,1061,1063,1061,695,29986,1179,1081,98,636,629,589,587]} 1. d4 {[%emt 0:00:03]} Nf6 {[%emt 0:00:05]} 2. c4 {[%emt 0:00:04]} e6 {[%emt 0:00:09]} 3. Nf3 {[%emt 0:00:05]} d5 {[%emt 0:00:05]} 4. Nc3 {[%emt 0:00:05]} dxc4 {[%emt 0:00:09]} 5. e4 {[%emt 0:00:05]} Bb4 {[%emt 0:00:06]} 6. Bxc4 {[%emt 0:00:04]} Nxe4 {[%emt 0:00:30]} 7. O-O {[%emt 0:00:06]} Nxc3 {[%emt 0:00:59]} 8. bxc3 {[%emt 0:00:05] The position is equal.} Be7 {[%emt 0:00:06]} 9. Qe2 {[%emt 0:00:04]} O-O {[%emt 0:02:46]} 10. Rd1 {[%emt 0:00:04]} Nd7 {[%emt 0:05:12]} 11. Ne5 {[%emt 0:00:06]} Nf6 {[%emt 0:02:49]} 12. Rd3 {[%emt 0:01:31]} c5 {[%emt 0:09:04]} 13. dxc5 {[%emt 0:08:08]} Qc7 {[%emt 0:04:01]} 14. Rg3 {[%emt 0:02:53]} Rd8 {[%emt 0:10:24]} ({Black should try} 14... Ne8 $14) 15. Bh6 $18 {[%emt 0:04:05]} g6 {[%emt 0:01:35][%cal Oc8d7]} 16. Rf3 {[%emt 0:06:14]} ({Better is} 16. Re1 $18 {[%cal Oe5f7] aiming for Nxf7!} Nd5 17. Qf3) 16... Qxc5 $2 {[%emt 0:23:33]} (16... b5 $16 {keeps fighting.} 17. Bxb5 Qxc5) 17. Re1 $1 {[%emt 0:04:33]} b5 {[%emt 0:06:51] [#]} 18. Bb3 {[%emt 0:00:05]} (18. Bxb5 Bd6 $16) 18... Bb7 {[%emt 0:05:10] [#]} 19. Nxf7 $1 {[%emt 0:00:13][%mdl 512]} Bxf3 {[%emt 0:02:22]} (19... Bd5 20. Nxd8) 20. gxf3 {[%emt 0:00:07]} (20. Qxe6 Bd5 21. Bxd5 Qxd5 $18 (21... Rxd5 22. Nd8+ Kh8 23. Qxf6+ Bxf6 24. Re8+)) 20... Kxf7 {[%emt 0:14:36][%cal Bg8f7,Bf7e8,Be8d8][%mdl 32]} 21. Qxe6+ {[%emt 0:00:06]} Ke8 {[%emt 0:00:07]} 22. Qxf6 {[%emt 0:00:05] Threatening mate with Bg5.} Rab8 {[%emt 0:03:55]} 23. Bf8 {[%emt 0:02:03] A strong pair of Bishops.} (23. Bg5 $142 Rd1 24. Bxd1 Rb7 25. Qh8+ Kd7 26. Rxe7+ (26. Bxe7 Qxe7 27. Rxe7+ Kxe7 28. Qxh7+ Ke6 29. Qxb7 Kd6 30. Qc8 Ke7) 26... Qxe7 27. Bxe7 Kxe7 28. Qxh7+ Ke6 29. Qxb7) 23... Rd7 {[%emt 0:02:31]} 24. Qf7+ {[%emt 0:00:03]} Kd8 {[%emt 0:00:08] [#]} 25. Bxe7+ {[%emt 0:00:05]} Rxe7 {[%emt 0:01:56]} 26. Qf8+ {[%emt 0:00:04] Weighted Error Value: White=0.98/Black=0.78.  Loses game:     	---       	Black=1      Mistake:       	White=1     	Black=1      Inaccurate:     	---       	Black=3      OK:         	White=6     	Black=7      Best:        	White=2     	---        Strong:       	White=1     	---        Brilliant:      	White=1     	---} 1-0

[Event "2nd Cambridge Open 2024"]
[Site "Cambridge"]
[Date "2024.02.19"]
[Round "2.5"]
[White "Golubovic, Boris"]
[Black "Turner, Matthew J"]
[Result "1/2-1/2"]
[ECO "C47"]
[WhiteElo "2342"]
[BlackElo "2448"]
[Annotator "TA"]
[PlyCount "20"]
[EventDate "2024.02.18"]
[EventType "swiss"]
[EventCountry "ENG"]
[SourceTitle "playchess.com"]
[Source "ChessBase"]
[SourceQuality "1"]
[TimeControl "5400+30"]

{[%evp 15,20,0,0,0,0,6,1]} 1. e4 {[%emt 0:00:22]} e5 {[%emt 0:00:07]} 2. Nf3 {[%emt 0:00:17]} Nc6 {[%emt 0:00:06]} 3. Nc3 {[%emt 0:00:22]} Nf6 {[%emt 0:00:37]} 4. d4 {[%emt 0:00:23]} exd4 {[%emt 0:00:17]} 5. Nxd4 {[%emt 0:00:09]} Bb4 {[%emt 0:00:48]} 6. Nxc6 {[%emt 0:00:17]} bxc6 {[%emt 0:00:08]} 7. Bd3 {[%emt 0:00:08]} d5 {[%emt 0:00:33]} 8. exd5 {[%emt 0:03:01]} cxd5 {[%emt 0:00:31] The position is equal.} 9. O-O {[%emt 0:00:15]} O-O {[%emt 0:00:28]} 10. Bg5 {[%emt 0:00:41]} c6 {[%emt 0:00:37] Not much happened in this game.   OK:         	White=1     	Black=2} 1/2-1/2

[Event "2nd Cambridge Open 2024"]
[Site "Cambridge"]
[Date "2024.02.19"]
[Round "2.6"]
[White "Willow, Jonah B"]
[Black "Gourlay, Iain"]
[Result "1-0"]
[ECO "B12"]
[WhiteElo "2434"]
[BlackElo "2301"]
[Annotator "TA"]
[PlyCount "105"]
[EventDate "2024.02.18"]
[EventType "swiss"]
[EventCountry "ENG"]
[SourceTitle "playchess.com"]
[Source "ChessBase"]
[SourceQuality "1"]
[TimeControl "5400+30"]

{[%evp 9,105,0,0,0,11,0,15,-8,0,0,0,-14,-17,-20,-14,-18,14,14,20,13,6,20,18,-1,6,-19,-14,-25,-12,-25,-22,-32,-12,-27,-18,-22,-10,-6,0,0,0,-2,29,45,13,19,35,42,37,41,109,102,111,95,172,162,173,74,61,65,252,237,320,322,453,388,393,395,578,460,462,443,586,585,561,580,584,592,693,689,806,795,1186,1166,1281,1292,1259,1249,29986,29981,29988,29989,29989,29990,29995,29986,29986,841]} 1. e4 {[%emt 0:00:02]} c6 {[%emt 0:02:11]} 2. d4 {[%emt 0:00:07]} d5 {[%emt 0:00:10]} 3. e5 {[%emt 0:00:06]} c5 {[%emt 0:00:33]} 4. Nf3 {[%emt 0:00:22]} cxd4 {[%emt 0:00:32]} 5. Qxd4 {[%emt 0:00:10]} Nc6 {[%emt 0:00:54]} 6. Qf4 {[%emt 0:00:17]} e6 {[%emt 0:00:30]} 7. Be3 {[%emt 0:00:18]} Qc7 {[%emt 0:08:35]} 8. Nc3 {[%emt 0:05:32] The position is equal.} a6 {[%emt 0:20:32] Against Nb5} 9. Bd3 {[%emt 0:09:41]} f6 {[%emt 0:06:37]} 10. exf6 {[%emt 0:01:50]} Qxf4 {[%emt 0:00:20]} 11. Bxf4 {[%emt 0:00:03]} gxf6 {[%emt 0:00:39]} 12. O-O {[%emt 0:15:47]} Bb4 {[%emt 0:06:43]} 13. Na4 {[%emt 0:04:11] [#] Nb6 would now be deadly.} e5 {[%emt 0:05:11]} 14. Nb6 {[%emt 0:00:19][%csl LRa8,LRd5]} Rb8 {[%emt 0:01:59]} 15. Nxc8 {[%emt 0:07:14]} Rxc8 {[%emt 0:00:22]} 16. Bf5 {[%emt 0:00:03]} (16. c3 $5) 16... Rd8 {[%emt 0:01:25][%cal Og8e7] aiming for ...Nge7!} 17. Bg3 {[%emt 0:04:42]} Nge7 {[%emt 0:11:20]} 18. Bh3 {[%emt 0:00:54]} Kf7 {[%emt 0:01:57]} 19. c3 {[%emt 0:04:59]} Bc5 {[%emt 0:01:04]} 20. b4 {[%emt 0:04:20]} Ba7 {[%emt 0:03:52]} 21. a4 {[%emt 0:03:21]} Ng6 {[%emt 0:01:14]} 22. Rfb1 {[%emt 0:08:25]} Nce7 {[%emt 0:07:32] With the idea ...h5.} 23. b5 {[%emt 0:02:41]} a5 {[%emt 0:04:38]} 24. b6 {[%emt 0:00:53]} Bb8 {[%emt 0:00:05]} 25. Nd2 {[%emt 0:01:25][%cal Bf3d2,Bd2b3,Bb3a5][%mdl 32]} f5 {[%emt 0:01:08]} 26. Nb3 {[%emt 0:03:49]} Bd6 {[%emt 0:06:04]} (26... f4 $2 27. Nxa5 e4 (27... fxg3 $2 28. hxg3 h6 29. Nxb7 $18) 28. Nxb7 $18) 27. Nxa5 {[%emt 0:00:58]} Rb8 {[%emt 0:00:18]} 28. f3 {[%emt 0:03:24]} Bc5+ {[%emt 0:02:50]} 29. Kf1 {[%emt 0:03:30]} Rhd8 {[%emt 0:01:10]} (29... Rhc8 $14) 30. Rb5 $16 {[%emt 0:00:40] White is more active.} Be3 {[%emt 0:01:20]} 31. Ke2 {[%emt 0:01:54]} f4 {[%emt 0:00:12]} (31... d4 $16) 32. Bf2 $36 {[%emt 0:01:36][%mdl 2048] Keeping Black busy.} d4 {[%emt 0:00:51][%cal Bd5d4,Bd4d3][%mdl 32]} 33. c4 {[%emt 0:04:54]} (33. cxd4 $18 {is the precise move to win.} exd4 34. Kf1) 33... d3+ {[%emt 0:00:16]} 34. Kf1 {[%emt 0:00:01]} Bd2 $2 {[%emt 0:01:52] Loses the game.} (34... d2 $14 35. Rd1 Rd3) 35. Nb3 $18 {[%emt 0:00:40]} Bc3 {[%emt 0:00:34]} 36. Rd1 {[%emt 0:00:01][%cal Ba1d1,Bd1d3,Bd3c3][%mdl 32]} Nc8 {[%emt 0:02:10]} (36... Nc6 $142 37. Nc5 Nge7) 37. Rd5 {[%emt 0:00:47]} Rxd5 38. cxd5 {[%emt 0:00:01]} Nge7 {[%emt 0:01:16]} (38... Bb4 {was called for.} 39. a5 (39. Rxd3 Nd6 $18) 39... Nd6 40. Rxd3 (40. Be6+ Ke7 $18) 40... Ne7 41. Be6+ Kg6) 39. Rxd3 {[%emt 0:00:11]} Bb4 {[%emt 0:00:11]} 40. a5 {[%emt 0:01:40]} ({But not} 40. Be6+ Kg6 41. d6 Nxd6) 40... Ra8 {[%emt 0:00:21]} 41. Be1 {[%emt 0:00:41]} Bxe1 {[%emt 0:00:26]} 42. Kxe1 {[%emt 0:00:04]} Nd6 {[%emt 0:00:46]} 43. Rc3 {[%emt 0:00:36]} Kf6 {[%emt 0:00:46]} 44. Rc7 {[%emt 0:01:00]} Rd8 {[%emt 0:00:29]} 45. Be6 {[%emt 0:01:05]} h6 {[%emt 0:00:33]} 46. Nc5 {[%emt 0:00:26]} Ra8 {[%emt 0:00:31] [#]} 47. a6 $1 {[%emt 0:02:02]} bxa6 {[%emt 0:00:22]} 48. b7 {[%emt 0:01:46]} Nxb7 {[%emt 0:00:05]} 49. Rxb7 {[%emt 0:00:14] White mates.} Nc8 {[%emt 0:01:01]} 50. Ne4+ {[%emt 0:00:56]} Kg6 {[%emt 0:00:09]} 51. Bf7+ {[%emt 0:00:48]} Kf5 {[%emt 0:00:21]} 52. Bh5 {[%emt 0:00:27][%cal Rb7f7]} Ra7 {[%emt 0:00:58]} 53. Bg4+ {[%emt 0:00:07] Weighted Error Value: White=0.13 (very precise) /Black=0.36.  Loses game:     	---       	Black=1      Mistake:       	White=1     	Black=4      Inaccurate:     	---       	Black=4      OK:         	White=17    	Black=18     Best:        	White=4     	Black=1} (53. Rb8 $142 Rc7 54. Rxc8 (54. Bg4+ Kg6 55. Rxc8 Rxc8 56. Bxc8 h5 57. d6 Kf7 58. d7 Ke7) 54... Rxc8 55. Bg4+ Kg6 56. Bxc8 h5 57. d6 (57. Bxa6 Kf7 58. d6 Kf8 59. Bb5 h4 60. Ng5 h3 61. gxh3 e4) 57... Kf7 58. d7 (58. Bxa6 h4 59. Bb5 Kf8 60. Ng5 h3 61. gxh3 e4 62. fxe4 f3)) 1-0